fUSD/lending_fUSD_20240215
["ID","MTS","AMOUNT","RATE_DAILY","PERIOD"]
[314090075,1707969050648,-550.0,0.00040547,7]
[314090076,1707969050658,-500.0,0.00040547,7]
[314090077,1707969050667,-801.67644985,0.00040547,8]
[314090078,1707969050684,-4198.32355015,0.00040547,8]
[314090079,1707969050693,-500.0,0.00040547,7]
[314090080,1707969050703,-500.0,0.00040547,7]
[314090081,1707969050713,-879.69,0.00040547,7]
[314090082,1707969050722,-873.86,0.00040547,7]
[314090083,1707969050732,-500.0,0.00040547,7]
[314090084,1707969050744,-500.0,0.00040547,7]
[314090085,1707969050753,-500.0,0.00040547,7]
[314090086,1707969050763,-581.06,0.00040547,7]
[314090087,1707969050773,-1180.3,0.00040547,7]
[314090088,1707969050782,-500.0,0.00040547,7]
[314090089,1707969050792,-429.6,0.00040547,7]
[314090090,1707969050801,-500.0,0.00040547,7]
[314090091,1707969050811,-500.0,0.00040547,7]
[314090092,1707969050821,-204.0,0.00040559,21]
[314090093,1707969050830,-594.0,0.0004059,20]
[314090094,1707969050840,-919.0,0.0004059,20]
[314090095,1707969050850,-150.0,0.00040607,2]
[314090096,1707969050860,-150.0,0.00040608,2]
[314090097,1707969050871,-150.91484715,0.00040609,30]
[314090098,1707969050880,-150.0,0.00040614,2]
[314090099,1707969050890,-150.0,0.00040641,2]
[314090100,1707969050900,-150.0,0.00040648,2]
[314090101,1707969050912,-624.17943432,0.00040649,14]
[314090102,1707969050923,-150.0,0.00040661,2]
[314090103,1707969050932,-200.0,0.00040668,2]
[314090104,1707969050941,-150.0,0.0004067,2]
[314090105,1707969050951,-155.89620406,0.000407,7]
[314090106,1707969050961,-150.0,0.00040707,2]
[314090107,1707969050970,-150.0,0.00040709,2]
[314090108,1707969050980,-2223.88956312,0.00040722,3]
[314090109,1707969050990,-156.29018033,0.00040738,30]
[314090110,1707969050999,-1942.47912682,0.00040767,3]
[314090111,1707969051009,-155.67934135,0.00040787,30]
[314090112,1707969051019,-2001.4222,0.00040795,5]
[314090113,1707969051029,-171.021518,0.00040798,21]
[314090114,1707969051040,-938.186,0.00040799,2]
[314090115,1707969051051,-1086.22,0.000408,21]
[314090116,1707969051061,-650.0,0.00040821,31]
[314090117,1707969051070,-650.0,0.00040821,31]
[314090118,1707969051079,-650.0,0.00040821,31]
[314090119,1707969051089,-650.0,0.00040821,31]
[314090120,1707969051099,-650.0,0.00040821,31]
[314090121,1707969051108,-650.0,0.00040821,31]
[314090122,1707969051118,-650.0,0.00040821,31]
[314090123,1707969051127,-388.58157815,0.00040821,31]
[314090124,1707969070248,463297.39802667,0.00023,2]
[314090125,1707969092555,154.69854635,0.0001,2]
[314090126,1707969233224,846962.78726991,0.00023,2]
[314090141,1707970231994,-1431.92967231,0.0002313,2]
[314090142,1707970232007,-728.2234395,0.0002313,2]
[314090143,1707970232020,-296.67951861,0.0002313,2]
[314090144,1707970232035,-2204.65640086,0.0002313,2]
[314090145,1707970232045,-159.98046682,0.0002469,2]
[314090147,1707970232054,-143.17509568,0.0002479,2]
[314090180,1707970237718,-42.08206022,0.0002479,2]
[314090181,1707970237727,-711.70496557,0.00025,2]
[314090182,1707970237739,-741.27723955,0.00025,2]
[314090183,1707970237750,-420.8888349,0.00025,2]
[314090184,1707970237763,-313.89851893,0.00025,2]
[314090185,1707970237774,-634.25608109,0.00025,2]
[314090186,1707970237783,-374.59448904,0.0002509,2]
[314090187,1707970237794,-13656.62643216,0.0002509,2]
[314090188,1707970238005,-9391.95335744,0.0002509,2]
[314090189,1707970238014,-11826.83524482,0.0002509,2]
[314090190,1707970238024,-154.89180211,0.0002509,2]
[314090191,1707970238034,-3138.41683993,0.000251,2]
[314090192,1707970238044,-588.23,0.00025132,2]
[314090193,1707970238054,-2495.0,0.00026,2]
[314090195,1707970238063,-5217.63003277,0.000263,2]
[314090197,1707970238072,-2353.95,0.00026834,2]
[314090199,1707970238082,-5631.31,0.00026834,2]
[314090201,1707970238092,-250.0,0.00026836,2]
[314090203,1707970238102,-150.0,0.00026933,2]
[314090222,1707970238111,-12933.65766113,0.00027,2]
[314090224,1707970238274,-201.453098,0.00027,4]
[314090226,1707970238284,-2000.0,0.0002705,2]
[314090228,1707970238293,-168.28,0.00027168,2]
[314090230,1707970238302,-250.0,0.00027169,2]
[314090232,1707970238312,-14731.98463361,0.000272,2]
[314090234,1707970238322,-588.23,0.00027396,2]
[314090236,1707970238331,-155.0,0.00027397,2]
[314090238,1707970238341,-8252.05480815,0.000275,2]
[314090240,1707970238350,-150.0,0.00027554,2]
[314090242,1707970238359,-1008.0,0.00027675,2]
[314090244,1707970238368,-204.0,0.00027839,2]
[314090246,1707970238377,-201.0,0.00027839,2]
[314090248,1707970238386,-168.28,0.00027876,2]
[314090250,1707970238400,-5773.8305,0.000279,3]
[314090252,1707970238411,-2718.8773,0.000279,2]
[314090254,1707970238420,-3082.5831,0.000279,2]
[314090256,1707970238429,-615.23476833,0.000279,3]
[314090259,1707970238440,-726.07655237,0.000279,2]
[314090261,1707970238449,-209.50537403,0.000279,2]
[314090263,1707970238458,-151.44898436,0.0002799,2]
[314090265,1707970238468,-1000.0,0.00027999,2]
[314090267,1707970238478,-719552.42879962,0.00028,2]
[314090269,1707970238489,-210128.5343,0.00028,2]
[314090271,1707970238499,-207.68309569,0.00028,2]
[314090273,1707970238510,-80577.00343332,0.000281,2]
[314090275,1707970238519,-207.19,0.00028555,2]
[314090277,1707970238528,-330.58,0.00028555,2]
[314090279,1707970238537,-168.28,0.00028584,2]
[314090281,1707970238546,-155.0,0.00028767,2]
[314090283,1707970238556,-1752.40621785,0.00029,15]
[314090285,1707970238566,-27264.16344356,0.0002913,2]
[314090287,1707970238575,-726.07655227,0.00029173,2]
[314090289,1707970238584,-588.23,0.0002966,2]
[314090291,1707970238593,-185.25715588,0.00029783,2]
[314090293,1707970238602,-30341.26682441,0.000299,2]
[314090295,1707970238612,-615.23476831,0.00029911,4]
[314090297,1707970238622,-6428.27226892,0.0002996,2]
[314090299,1707970238631,-751.11492811,0.0003,2]
[314090301,1707970238641,-344.44496608,0.0003,2]
[314090303,1707970238650,-1446.17701131,0.0003,2]
[314090306,1707970238659,-297.7278907,0.000301,2]
[314090307,1707970238669,-153.87,0.00030137,2]
[314090309,1707970238679,-157.30314006,0.00030137,2]
[314090312,1707970238691,-330.58,0.00030199,2]
[314090314,1707970238701,-726.07655227,0.00030445,2]
[314090316,1707970238710,-152.11669873,0.00031,30]
[314090318,1707970238719,-7657.55931575,0.00031,2]
[314090320,1707970238728,-372.25725722,0.00031,2]
[314090322,1707970238738,-880.0,0.00031088,2]
[314090324,1707970238747,-204.0,0.00031412,8]
[314090326,1707970238757,-726.07655227,0.00031718,3]
[314090328,1707970238766,-35881.158784,0.000318,2]
[314090330,1707970238775,-330.58,0.00031843,2]
[314090332,1707970238784,-615.23476831,0.00031921,5]
[314090334,1707970238793,-588.23,0.00031924,2]
[314090336,1707970238803,-2448.2900775,0.00032125,2]
[314090338,1707970238812,-150.0,0.00032147,2]
[314090340,1707970238821,-5442.19107326,0.00032934,10]
[314090342,1707970238830,-2032.88605623,0.00032934,10]
[314090344,1707970238839,-3973.99591613,0.00032976,10]
[314090346,1707970238848,-726.07655227,0.00032991,5]
[314090348,1707970238857,-16079.0,0.000331,3]
[314090350,1707970238866,-330.58,0.00033486,2]
[314090352,1707970238875,-154.10912841,0.000339,2]
[314090354,1707970238885,-154.10912841,0.000339,2]
[314090356,1707970238893,-615.23476831,0.00033932,6]
[314090358,1707970238902,-588.23,0.00034188,2]
[314090360,1707970238912,-726.07655227,0.00034264,6]
[314090362,1707970238922,-157.06,0.000347,2]
[314090364,1707970238931,-157.06,0.000347,2]
[314090366,1707970238940,-157.06,0.000347,2]
[314090368,1707970238949,-157.06,0.000347,2]
[314090370,1707970238958,-157.06,0.000347,2]
[314090372,1707970238967,-157.06,0.000347,2]
[314090374,1707970238977,-185.25715588,0.00034777,2]
[314090375,1707970238985,-1359.73538881,0.00034799,2]
[314090376,1707970238994,-1359.73538877,0.00034799,2]
[314090377,1707970239004,-1359.73538877,0.00034799,2]
[314090378,1707970239013,-1359.73538877,0.00034799,2]
[314090379,1707970239022,-1359.73538877,0.00034799,2]
[314090380,1707970239031,-1090.87907297,0.000349,2]
[314090381,1707970239040,-1090.8790728,0.000349,2]
[314090382,1707970239049,-1090.8790728,0.000349,2]
[314090383,1707970239058,-1090.8790728,0.000349,2]
[314090385,1707970239067,-1090.8790728,0.000349,2]
[314090387,1707970239077,-880.0,0.00034974,2]
[314090389,1707970239087,-204.0,0.00034986,14]
[314090391,1707970239096,-359.56548659,0.00035083,3]
[314090393,1707970239106,-2064.04144235,0.0003509,2]
[314090395,1707970239115,-330.58,0.0003513,2]
[314090397,1707970239125,-726.07655227,0.00035536,8]
[314090399,1707970239134,-1090.8790728,0.00035795,2]
[314090401,1707970239143,-615.23476831,0.00035942,7]
[314090403,1707970239153,-1359.73538877,0.00036133,2]
[314090405,1707970239162,-588.23,0.00036451,2]
[314090407,1707970239171,-157.06,0.000365,3]
[314090409,1707970239181,-157.06,0.000365,3]
[314090411,1707970239190,-157.06,0.000365,3]
[314090413,1707970239199,-157.06,0.000365,3]
[314090415,1707970239208,-157.06,0.000365,3]
[314090417,1707970239217,-157.06,0.000365,3]
[314090419,1707970239226,-150.0,0.00036739,2]
[314090421,1707970239236,-330.58,0.00036774,2]
[314090423,1707970239245,-5117.11721077,0.000368,7]
[314090425,1707970239255,-726.07655227,0.00036809,9]
[314090427,1707970239264,-283.3,0.00037155,2]
[314090429,1707970239275,-372.86,0.00037155,2]
[314090431,1707970239284,-151.021518,0.00037198,18]
[314090433,1707970239293,-1090.8790728,0.00037374,2]
[314090435,1707970239302,-151.021518,0.00037498,18]
[314090437,1707970239312,-353.15041852,0.00037733,10]
[314090439,1707970239322,-1359.73538877,0.00037779,2]
[314090441,1707970239331,-151.021518,0.00037798,19]
[314090443,1707970239341,-1238.94868674,0.00037897,2]
[314090445,1707970239350,-587386.761972,0.000379,2]
[314090447,1707970239359,-615.23476831,0.00037953,8]
[314090449,1707970239368,-500.0,0.00038056,2]
[314090451,1707970239379,-2353.95,0.00038067,2]
[314090453,1707970239389,-726.07655227,0.00038082,11]
[314090455,1707970239398,-151.021518,0.00038198,19]
[314090457,1707970239411,-157.06,0.000382,3]
[314090459,1707970239420,-157.06,0.000382,3]
[314090461,1707970239429,-157.06,0.000382,3]
[314090463,1707970239438,-157.06,0.000382,3]
[314090465,1707970239450,-157.06,0.000382,3]
[314090467,1707970239460,-157.06,0.000382,3]
[314090469,1707970239469,-5000.0,0.00038246,3]
[314090471,1707970239480,-205.8867609,0.00038256,2]
[314090473,1707970239489,-242.3541789,0.00038256,2]
[314090475,1707970239498,-165.6801245,0.00038256,2]
[314090477,1707970239508,-159.68625956,0.00038256,2]
[314090479,1707970239518,-83912.3945674,0.00038336,2]
[314090481,1707970239527,-1238.94868674,0.00038353,2]
[314090483,1707970239536,-633507.36285328,0.00038356,3]
[314090485,1707970239545,-2860.93219222,0.00038356,2]
[314090487,1707970239554,-500.0,0.00038356,7]
[314090489,1707970239564,-1000.0,0.00038356,7]
[314090491,1707970239573,-500.93866923,0.00038356,7]
[314090493,1707970239582,-525.35882438,0.00038356,7]
[314090495,1707970239591,-500.0,0.00038356,7]
[314090497,1707970239601,-511.82218749,0.00038356,7]
[314090499,1707970239610,-500.2639986,0.00038356,7]
[314090501,1707970239620,-500.0,0.00038356,7]
[314090503,1707970239629,-500.0,0.00038356,7]
[314090505,1707970239638,-555.87420529,0.00038356,7]
[314090507,1707970239647,-500.0,0.00038356,7]
[314090509,1707970239657,-666.39133084,0.00038356,7]
[314090511,1707970239666,-500.0,0.00038356,7]
[314090513,1707970239675,-1000.0,0.00038356,7]
[314090515,1707970239684,-500.0,0.00038356,7]
[314090517,1707970239693,-526.7044343,0.00038356,7]
[314090519,1707970239702,-500.0,0.00038356,7]
[314090521,1707970239712,-500.0,0.00038356,2]
[314090523,1707970239723,-500.0,0.00038356,7]
[314090526,1707970239733,-640.10150303,0.00038356,7]
[314090528,1707970239742,-526.94165787,0.00038356,7]
[314090529,1707970239752,-513.5583782,0.00038356,7]
[314090531,1707970239761,-514.98808207,0.00038356,7]
[314090534,1707970239770,-500.0,0.00038356,7]
[314090536,1707970239779,-511.99434384,0.00038356,7]
[314090538,1707970239788,-500.0,0.00038356,7]
[314090540,1707970239798,-514.18308753,0.00038356,7]
[314090542,1707970239807,-500.0,0.00038356,7]
[314090543,1707970239818,-507.98715626,0.00038356,7]
[314090545,1707970239827,-525.30196184,0.00038356,7]
[314090547,1707970239836,-500.0,0.00038356,7]
[314090549,1707970239845,-533.45484258,0.00038356,7]
[314090551,1707970239854,-500.0,0.00038356,7]
[314090553,1707970239863,-518.822548,0.00038356,7]
[314090555,1707970239872,-500.0,0.00038356,7]
[314090557,1707970239881,-507.26248214,0.00038356,7]
[314090559,1707970239890,-544.22145492,0.00038356,7]
[314090561,1707970239899,-513.42858354,0.00038356,7]
[314090564,1707970239908,-512.22557376,0.00038356,7]
[314090566,1707970239918,-500.0,0.00038356,7]
[314090568,1707970239927,-519.85982458,0.00038356,7]
[314090570,1707970239936,-502.6990058,0.00038356,7]
[314090572,1707970239945,-234.78,0.00038356,7]
[314090574,1707970239954,-500.0,0.00038356,7]
[314090576,1707970239963,-532.08885621,0.00038356,7]
[314090578,1707970239971,-517.61200919,0.00038356,7]
[314090580,1707970239981,-500.0,0.00038356,7]
[314090582,1707970239991,-500.0,0.00038356,2]
[314090583,1707970240001,-500.0,0.00038356,7]
[314090586,1707970240011,-500.0,0.00038356,7]
[314090588,1707970240021,-592.86,0.00038356,7]
[314090589,1707970240030,-511.72117939,0.00038356,7]
[314090591,1707970240039,-592.86,0.00038356,7]
[314090594,1707970240049,-592.86,0.00038356,7]
[314090596,1707970240059,-592.86,0.00038356,7]
[314090598,1707970240069,-592.86,0.00038356,7]
[314090599,1707970240080,-500.0,0.00038356,7]
[314090601,1707970240088,-500.0,0.00038356,7]
[314090603,1707970240097,-513.07399887,0.00038356,7]
[314090605,1707970240107,-547.18185331,0.00038356,7]
[314090607,1707970240116,-502.9539551,0.00038356,7]
[314090609,1707970240125,-500.0,0.00038356,7]
[314090611,1707970240135,-506.87181123,0.00038356,7]
[314090613,1707970240144,-500.0,0.00038356,7]
[314090615,1707970240153,-513.54020715,0.00038356,7]
[314090617,1707970240162,-500.0,0.00038356,7]
[314090620,1707970240171,-528.92683781,0.00038356,7]
[314090623,1707970240181,-506.58485375,0.00038356,7]
[314090625,1707970240190,-513.99335436,0.00038356,7]
[314090627,1707970240200,-505.17167283,0.00038356,7]
[314090630,1707970240210,-500.0,0.00038356,7]
[314090632,1707970240219,-500.0,0.00038356,7]
[314090634,1707970240229,-500.0,0.00038356,7]
[314090636,1707970240238,-505.81673384,0.00038356,7]
[314090638,1707970240247,-507.93612907,0.00038356,7]
[314090639,1707970240256,-491.86355155,0.00038356,7]
[314090642,1707970240266,-500.0,0.00038356,7]
[314090644,1707970240275,-500.0,0.00038356,7]
[314090646,1707970240285,-500.0,0.00038356,7]
[314090648,1707970240294,-500.0,0.00038356,7]
[314090650,1707970240303,-517.31852926,0.00038356,7]
[314090652,1707970240312,-640.71334413,0.00038356,7]
[314090654,1707970240322,-166.47,0.00038356,7]
[314090656,1707970240331,-511.74062332,0.00038356,7]
[314090657,1707970240340,-521.48439384,0.00038356,7]
[314090659,1707970240349,-500.0,0.00038356,7]
[314090661,1707970240359,-503.17464348,0.00038356,7]
[314090663,1707970240368,-535.94198773,0.00038356,7]
[314090666,1707970240378,-537.8573434,0.00038356,7]
[314090668,1707970240387,-520.97276046,0.00038356,7]
[314090670,1707970240396,-510.91051425,0.00038356,7]
[314090672,1707970240408,-500.0,0.00038356,7]
[314090674,1707970240417,-500.0,0.00038356,7]
[314090676,1707970240426,-500.0,0.00038356,7]
[314090677,1707970240435,-500.0,0.00038356,7]
[314090679,1707970240445,-500.0,0.00038356,7]
[314090681,1707970240454,-515.0744271,0.00038356,7]
[314090683,1707970240464,-500.0,0.00038356,7]
[314090686,1707970240474,-172.2414124,0.00038356,7]
[314090688,1707970240484,-585.35149538,0.00038356,7]
[314090690,1707970240493,-500.0,0.00038356,7]
[314090691,1707970240502,-500.0,0.00038356,7]
[314090693,1707970240513,-500.0,0.00038356,7]
[314090695,1707970240522,-500.0,0.00038356,7]
[314090698,1707970240532,-728.22,0.00038356,7]
[314090700,1707970240541,-500.0,0.00038356,7]
[314090702,1707970240550,-523.1913926,0.00038356,7]
[314090704,1707970240559,-500.0,0.00038356,7]
[314090706,1707970240568,-500.0,0.00038356,7]
[314090708,1707970240578,-500.0,0.00038356,7]
[314090709,1707970240586,-535.54567942,0.00038356,7]
[314090711,1707970240596,-515.7048019,0.00038356,7]
[314090714,1707970240605,-500.0,0.00038356,7]
[314090715,1707970240615,-500.0,0.00038356,7]
[314090717,1707970240625,-500.0,0.00038356,7]
[314090720,1707970240636,-150.0,0.00038356,7]
[314090721,1707970240646,-500.0,0.00038356,7]
[314090723,1707970240656,-240.77468639,0.00038356,7]
[314090726,1707970240666,-541.72491053,0.00038356,7]
[314090728,1707970240675,-517.02777696,0.00038356,7]
[314090730,1707970240687,-518.84090823,0.00038356,7]
[314090732,1707970240696,-500.0,0.00038356,7]
[314090734,1707970240706,-500.0,0.00038356,7]
[314090736,1707970240715,-533.10416827,0.00038356,7]
[314090738,1707970240724,-529.86751901,0.00038356,7]
[314090739,1707970240734,-523.17123724,0.00038356,7]
[314090742,1707970240743,-500.0,0.00038356,7]
[314090744,1707970240752,-518.50393555,0.00038356,7]
[314090745,1707970240763,-500.0,0.00038356,7]
[314090746,1707970240772,-500.0,0.00038356,7]
[314090747,1707970240781,-505.88423279,0.00038356,7]
[314090748,1707970240790,-500.0,0.00038356,7]
[314090749,1707970240798,-500.0,0.00038356,7]
[314090750,1707970240807,-500.0,0.00038356,7]
[314090751,1707970240816,-175.89797385,0.00038356,7]
[314090752,1707970240825,-500.0,0.00038356,7]
[314090754,1707970240834,-506.14815231,0.00038356,7]
[314090756,1707970240843,-523.46267885,0.00038356,7]
[314090758,1707970240852,-500.0,0.00038356,7]
[314090760,1707970240861,-631.25861426,0.00038356,7]
[314090762,1707970240870,-500.0,0.00038356,7]
[314090764,1707970240880,-3137.26580194,0.00038356,7]
[314090766,1707970240889,-546.63004777,0.00038356,7]
[314090768,1707970240898,-519.41259209,0.00038356,7]
[314090770,1707970240906,-500.0,0.00038356,7]
[314090772,1707970240916,-613.5239446,0.00038356,7]
[314090774,1707970240925,-500.0,0.00038356,7]
[314090776,1707970240935,-523.38125968,0.00038356,7]
[314090778,1707970240944,-543.57921175,0.00038356,7]
[314090780,1707970240954,-556.62312727,0.00038356,7]
[314090782,1707970240963,-528.12627516,0.00038356,7]
[314090784,1707970240972,-196.42188972,0.00038356,7]
[314090786,1707970240981,-500.0,0.00038356,7]
[314090788,1707970240990,-505.93848379,0.00038356,7]
[314090790,1707970241001,-500.0,0.00038356,7]
[314090792,1707970241010,-180.66385427,0.00038356,7]
[314090794,1707970241019,-541.11196371,0.00038356,7]
[314090796,1707970241028,-234.69650725,0.00038356,7]
[314090798,1707970241037,-500.0,0.00038356,7]
[314090800,1707970241047,-510.29028749,0.00038356,7]
[314090802,1707970241057,-500.0,0.00038356,7]
[314090804,1707970241066,-500.0,0.00038356,7]
[314090806,1707970241075,-535.33670186,0.00038356,7]
[314090808,1707970241084,-500.0,0.00038356,7]
[314090810,1707970241094,-526.14166542,0.00038356,7]
[314090812,1707970241104,-530.22005473,0.00038356,7]
[314090814,1707970241112,-160.139379,0.00038356,7]
[314090816,1707970241122,-530.87648806,0.00038356,7]
[314090818,1707970241131,-500.0,0.00038356,7]
[314090820,1707970241140,-500.0,0.00038356,7]
[314090822,1707970241149,-500.0,0.00038356,7]
[314090824,1707970241158,-500.0,0.00038356,7]
[314090826,1707970241167,-518.9105739,0.00038356,7]
[314090828,1707970241176,-526.18764561,0.00038356,7]
[314090829,1707970241185,-500.0,0.00038356,7]
[314090831,1707970241194,-227.49913039,0.00038356,7]
[314090833,1707970241203,-500.0,0.00038356,7]
[314090835,1707970241212,-428.28693672,0.00038356,7]
[314090837,1707970241221,-500.0,0.00038356,7]
[314090839,1707970241230,-500.89323947,0.00038356,7]
[314090842,1707970241239,-513.72664681,0.00038356,7]
[314090844,1707970241248,-500.0,0.00038356,7]
[314090845,1707970241257,-500.0,0.00038356,7]
[314090848,1707970241267,-500.0,0.00038356,7]
[314090849,1707970241276,-500.0,0.00038356,7]
[314090851,1707970241285,-500.0,0.00038356,7]
[314090853,1707970241294,-528.03317239,0.00038356,7]
[314090855,1707970241303,-525.68966591,0.00038356,7]
[314090857,1707970241312,-500.0,0.00038356,7]
[314090859,1707970241321,-500.0,0.00038356,7]
[314090861,1707970241331,-605.25153489,0.00038356,7]
[314090863,1707970241339,-527.02311833,0.00038356,7]
[314090865,1707970241349,-500.0,0.00038356,7]
[314090867,1707970241358,-500.0,0.00038356,7]
[314090869,1707970241367,-515.27477593,0.00038356,7]
[314090871,1707970241376,-500.0,0.00038356,7]
[314090873,1707970241385,-500.0,0.00038356,7]
[314090875,1707970241396,-500.0,0.00038356,7]
[314090877,1707970241409,-500.0,0.00038356,7]
[314090879,1707970241418,-500.0,0.00038356,7]
[314090881,1707970241427,-500.0,0.00038356,7]
[314090883,1707970241437,-500.0,0.00038356,7]
[314090885,1707970241447,-500.0,0.00038356,7]
[314090887,1707970241456,-500.0,0.00038356,7]
[314090889,1707970241465,-500.0,0.00038356,7]
[314090891,1707970241474,-500.0,0.00038356,7]
[314090906,1707970241598,-512.0986752,0.00038356,7]
[314090907,1707970241607,-500.0,0.00038356,7]
[314090909,1707970241617,-500.0,0.00038356,7]
[314090911,1707970241625,-500.0,0.00038356,7]
[314090912,1707970241634,-509.77540713,0.00038356,7]
[314090914,1707970241643,-505.1305701,0.00038356,7]
[314090916,1707970241652,-509.92911311,0.00038356,7]
[314090918,1707970241661,-585.36827855,0.00038356,7]
[314090919,1707970241670,-525.91241829,0.00038356,7]
[314090921,1707970241679,-500.0,0.00038356,7]
[314090922,1707970241688,-500.0,0.00038356,7]
[314090924,1707970241697,-500.0,0.00038356,7]
[314090925,1707970241706,-500.0,0.00038356,7]
[314090926,1707970241715,-517.02994212,0.00038356,7]
[314090927,1707970241723,-504.35150619,0.00038356,7]
[314090928,1707970241732,-507.8450788,0.00038356,7]
[314090929,1707970241741,-546.66548949,0.00038356,7]
[314090930,1707970241750,-244.4829717,0.00038356,7]
[314090931,1707970241760,-500.0,0.00038356,7]
[314090932,1707970241769,-505.4502826,0.00038356,7]
[314090933,1707970241778,-474.17657206,0.00038356,7]
[314090934,1707970241788,-515.08159922,0.00038356,7]
[314090935,1707970241797,-525.93389783,0.00038356,7]
[314090936,1707970241806,-500.0,0.00038356,7]
[314090937,1707970241815,-500.0,0.00038356,7]
[314090938,1707970241825,-500.0,0.00038356,7]
[314090939,1707970241834,-500.0,0.00038356,7]
[314090940,1707970241844,-500.0,0.00038356,7]
[314090941,1707970241853,-500.0,0.00038356,7]
[314090942,1707970241863,-500.0,0.00038356,7]
[314090943,1707970241873,-500.0,0.00038356,7]
[314090944,1707970241882,-323.11271249,0.00038356,7]
[314090946,1707970241892,-524.35253935,0.00038356,7]
[314090947,1707970241901,-530.89606413,0.00038356,7]
[314090948,1707970241911,-325.6805572,0.00038356,7]
[314090949,1707970241923,-594.78873923,0.00038356,7]
[314090950,1707970241932,-549.84684217,0.00038356,7]
[314090951,1707970241941,-500.0,0.00038356,7]
[314090952,1707970241950,-163.22806524,0.00038356,7]
[314090953,1707970241960,-526.01316292,0.00038356,7]
[314090954,1707970241972,-525.89556424,0.00038356,7]
[314090955,1707970241982,-524.81605623,0.00038356,7]
[314090956,1707970241991,-508.99952911,0.00038356,7]
[314090957,1707970242001,-515.41650476,0.00038356,7]
[314090958,1707970242013,-516.42084064,0.00038356,7]
[314090959,1707970242024,-500.0,0.00038356,7]
[314090960,1707970242035,-526.41607718,0.00038356,7]
[314090961,1707970242047,-500.0,0.00038356,7]
[314090962,1707970242056,-500.0,0.00038356,7]
[314090963,1707970242065,-500.0,0.00038356,7]
[314090964,1707970242073,-523.65063356,0.00038356,7]
[314090965,1707970242083,-519.24028704,0.00038356,7]
[314090966,1707970242093,-500.0,0.00038356,7]
[314090967,1707970242102,-500.0,0.00038356,7]
[314090968,1707970242113,-500.0,0.00038356,7]
[314090969,1707970242123,-514.35349478,0.00038356,7]
[314090970,1707970242132,-500.0,0.00038356,7]
[314090971,1707970242143,-500.0,0.00038356,7]
[314090972,1707970242153,-557.25108163,0.00038356,7]
[314090973,1707970242162,-500.0,0.00038356,7]
[314090974,1707970242172,-500.0,0.00038356,7]
[314090975,1707970242181,-1000.90107741,0.00038356,2]
[314090976,1707970242190,-500.0,0.00038356,7]
[314090977,1707970242200,-500.0,0.00038356,7]
[314090978,1707970242210,-550.3086389,0.00038356,7]
[314090979,1707970242219,-525.20167566,0.00038356,7]
[314090980,1707970242228,-500.0,0.00038356,7]
[314090981,1707970242237,-500.0,0.00038356,7]
[314090982,1707970242246,-500.0,0.00038356,7]
[314090983,1707970242255,-485.19936003,0.00038356,7]
[314090984,1707970242266,-508.04047026,0.00038356,7]
[314090985,1707970242275,-500.0,0.00038356,7]
[314090986,1707970242284,-500.0,0.00038356,7]
[314090987,1707970242293,-176.40013662,0.00038356,7]
[314090988,1707970242303,-504.03768573,0.00038356,7]
[314090989,1707970242312,-500.0,0.00038356,7]
[314090990,1707970242322,-672.19,0.00038356,7]
[314090991,1707970242331,-529.76061083,0.00038356,7]
[314090992,1707970242340,-587.72380921,0.00038356,7]
[314090993,1707970242351,-531.29070927,0.00038356,7]
[314090994,1707970242360,-500.0,0.00038356,7]